[Event "16th Serbian Championship 2022"]
[Site "Bajina Basta"]
[Date "2022.12.11"]
[Round "6.4"]
[White "Ivic, Velimir"]
[Black "Perunovic, Miodrag"]
[Result "1-0"]
[ECO "C60"]
[WhiteElo "2560"]
[BlackElo "2417"]
[Annotator "TA"]
[PlyCount "129"]
[EventDate "2022.12.06"]
[EventType "tourn"]
[EventCountry "SRB"]
[SourceTitle "playchess.com"]
[Source "ChessBase"]
[SourceQuality "1"]
[TimeControl "40/5400+30:1800+30"]

{[%evp 9,129,28,31,18,33,25,27,31,39,28,24,1,20,0,3,9,40,25,49,31,41,37,39,31,24,25,34,22,23,14,20,20,31,6,22,25,129,81,165,168,177,175,163,157,183,195,154,113,103,109,115,124,112,114,117,124,116,122,137,110,145,142,147,116,156,150,188,190,176,173,214,204,250,247,266,265,240,242,316,309,293,279,279,253,255,227,360,329,362,255,231,0,366,358,338,266,365,345,440,432,579,576,536,437,516,452,516,505,977,750,785,880,974,943,897,889,798,665,29985,29983,29986,29987]} 1. e4 {[%emt 0:00:06]} e5 {[%emt 0:07:11]} 2. Nf3 {[%emt 1:31:24]} Nc6 {[%emt 1:24:19]} 3. Bb5 {[%emt 0:00:00]} Nge7 {[%emt 0:00:00]} 4. Nc3 {[%emt 0:00:00]} Ng6 {[%emt 0:00:00]} 5. d4 {[%emt 0:00:00]} Nxd4 {[%emt 0:00:00]} 6. Nxd4 {[%emt 0:00:00] C60: Ruy Lopez: Unusual Black 3rd moves and 3...g6.} exd4 {[%emt 0:02:00]} 7. Qxd4 {[%emt 0:00:00]} c6 {[%emt 0:00:00]} 8. Be2 {[%emt 0:00:00][%cal Oh2h4] White has an edge.} Qb6 {[%emt 0:00:00] Prevents h4.} 9. Qd3 {[%emt 0:00:00]} Be7 {[%emt 0:00:00]} 10. O-O {[%emt 0:00:00]} O-O {[%emt 0:00:00]} 11. a4 {[%emt 0:00:00][%cal Ba2a4,Ba4a5][%mdl 32]} d6 {[%emt 0:00:00]} 12. a5 {[%emt 0:00:00]} Qc7 {[%emt 0:00:00]} 13. Be3 {[%emt 0:00:00]} Bd7 {[%emt 0:00:00]} 14. f4 {[%emt 0:00:00]} Rfe8 {[%emt 0:00:00]} 15. g3 {[%emt 0:00:00]} b5 {[%emt 0:00:00] [#]} 16. axb6 $146 {[%emt 0:00:00]} ({Predecessor:} 16. Bf3 Rab8 17. Ne2 b4 18. Rfd1 c5 19. e5 Bb5 20. exd6 Bxd6 21. Qxd6 Qxd6 22. Rxd6 Rxe3 {½-½ (43) Ganguly,S (2608)-Pechac,J (2594) Chennai 2022}) 16... axb6 {[%emt 0:00:00][%cal Ba7b6,Bb6b5,Bb5b4][%mdl 32]} 17. Bf3 {[%emt 0:00:00]} b5 {[%emt 0:00:00]} 18. Rxa8 {[%emt 0:00:00]} Rxa8 {[%emt 0:00:00]} 19. Rd1 {[%emt 0:00:00][%cal Oe3c5]} b4 {[%emt 0:00:00]} 20. Ne2 {[%emt 0:00:00][%cal Bc3e2,Be2d4,Bd4f5][%mdl 32]} Ra2 {[%emt 0:00:00]} 21. b3 {[%emt 0:00:00]} Bc8 {[%emt 0:00:00]} 22. Nd4 {[%emt 0:00:00]} Ba6 {[%emt 0:00:00]} (22... Bf8 $11) 23. Qd2 {[%emt 0:00:00]} ({Better is} 23. c4) 23... c5 {[%emt 0:00:00]} (23... h6 $16) 24. Nf5 $18 {[%emt 0:00:00] [#] Hoping for e5.} Bf8 {[%emt 0:00:00]} 25. Nxd6 {[%emt 0:00:00]} c4 {[%emt 0:00:00]} 26. bxc4 {[%emt 0:00:38]} Bxc4 {[%emt 0:00:00]} 27. Qxb4 {[%emt 0:02:12]} Rxc2 {[%emt 0:00:00]} 28. Qb6 {[%emt 0:03:27] Inhibits Qc6.} Qxb6 {[%emt 0:00:00]} 29. Bxb6 {[%emt 0:00:05]} Be2 {[%emt 0:00:00]} 30. Bxe2 {[%emt 0:00:06]} Rxe2 {[%emt 0:00:00]} 31. e5 {[%emt 0:00:50]} f6 {[%emt 0:00:00]} 32. exf6 {[%emt 0:01:40]} gxf6 {[%emt 0:00:00]} 33. Bf2 {[%emt 0:00:30]} Re6 {[%emt 0:06:47]} 34. Nf5 {[%emt 0:00:34]} Ra6 {[%emt 0:00:18]} 35. Rd7 {[%emt 0:01:17]} Ra5 {[%emt 0:00:54]} 36. Nd4 {[%emt 0:01:25] White is much more active.} Ra1+ {[%emt 0:01:44]} 37. Kg2 {[%emt 0:00:04]} Rd1 {[%emt 0:00:06]} 38. Rc7 {[%emt 0:01:15]} Rd2 {[%emt 0:01:22]} 39. Kf3 {[%emt 0:00:27]} Ra2 {[%emt 0:01:52]} 40. Ne6 {[%emt 0:01:32]} Be7 {[%emt 0:03:08]} 41. Bd4 {[%emt 0:05:47] f5 is the strong threat.} Ra5 {[%emt 0:03:53] Inhibits f5.} 42. Bc3 {[%emt 0:02:21]} Rb5 {[%emt 0:00:51]} 43. Ke4 {[%emt 0:02:14] aiming for f5.} f5+ {[%emt 0:07:52]} 44. Kd3 {[%emt 0:00:27]} Rb6 {[%emt 0:00:01]} 45. Nd4 {[%emt 0:01:56]} Rf6 {[%emt 0:00:59]} 46. Kc4 {[%emt 0:02:29]} Bf8 {[%emt 0:03:02]} 47. Rb7 {[%emt 0:03:53]} Ne7 {[%emt 0:02:47]} (47... h5 $142 48. Rb5 Ne7) 48. Bb4 {[%emt 0:03:54]} Ng6 {[%emt 0:00:56]} 49. Rb8 {[%emt 0:02:13]} Kf7 {[%emt 0:00:22]} 50. Rb7+ {[%emt 0:02:04]} (50. Ba5 $142) 50... Kg8 $1 {[%emt 0:04:40]} 51. Bxf8 {[%emt 0:01:23]} Rxf8 {[%emt 0:02:45][%mdl 4096] Endgame KRN-KRN} 52. Rd7 {[%emt 0:02:17]} Rf6 {[%emt 0:03:12]} 53. Kd5 {[%emt 0:00:27]} Nf8 {[%emt 0:02:25]} 54. Ra7 {[%emt 0:00:17]} Ng6 {[%emt 0:00:08]} 55. Ne6 {[%emt 0:00:48]} h6 {[%emt 0:00:40]} 56. h4 {[%emt 0:01:52] h5 would kill now.} h5 {[%emt 0:00:08]} 57. Ng7 {[%emt 0:01:16]} Nf8 {[%emt 0:03:39]} 58. Ke5 {[%emt 0:00:51]} Rb6 {[%emt 0:00:44]} (58... Rh6 $142 59. Nxf5 (59. Kxf5 Rh7 $11) 59... Re6+ 60. Kd5 Re1 61. Rg7+ Kh8) 59. Nxh5 {[%emt 0:03:17]} Rb5+ {[%emt 0:00:20]} 60. Kf6 {[%emt 0:00:28]} Nh7+ {[%emt 0:00:05]} 61. Kg6 {[%emt 0:00:29] White threatens Nf6+ and mate.} Nf8+ {[%emt 0:00:22] [#]} 62. Kh6 $1 {[%emt 0:00:27]} Rb6+ {[%emt 0:01:21]} 63. Kg5 {[%emt 0:00:04] Threatening mate with Nf6+.} Rb5 {[%emt 0:00:35]} 64. Nf6+ {[%emt 0:00:22]} Kh8 {[%emt 0:00:01]} 65. Rf7 {[%emt 0:00:16] Weighted Error Value: White=0.18 (very precise) /Black=0.35} 1-0

[Event "16th Serbian Championship 2022"]
[Site "Bajina Basta"]
[Date "2022.12.11"]
[Round "6.5"]
[White "Perunovic, Milos"]
[Black "Bogosavljevic, Boban"]
[Result "1/2-1/2"]
[ECO "B37"]
[WhiteElo "2541"]
[BlackElo "2521"]
[Annotator "TA"]
[PlyCount "92"]
[EventDate "2022.12.06"]
[EventType "tourn"]
[EventCountry "SRB"]
[SourceTitle "playchess.com"]
[Source "ChessBase"]
[SourceQuality "1"]
[TimeControl "40/5400+30:1800+30"]

{[%evp 20,92,27,-5,0,0,-9,-18,0,-12,-14,-16,-12,-12,-12,-12,-12,-14,-3,-141,-155,-101,-142,-152,-96,-102,-57,-99,-64,-84,-97,-82,-87,-155,-161,-158,-154,-156,-156,-160,-153,-154,-139,-153,-154,-320,-320,-517,-197,-212,-120,-121,-120,-127,-122,-119,-4,-8,0,-1,8,8,8,0,0,0,0,0,0,0,0,0,0,0,0]} 1. e4 {[%emt 0:00:12]} c5 {[%emt 0:01:49]} 2. Nf3 {[%emt 0:00:18]} g6 {[%emt 0:00:08]} 3. d4 {[%emt 0:02:09]} cxd4 {[%emt 0:00:06]} 4. Nxd4 {[%emt 0:00:07]} Bg7 {[%emt 0:00:17]} 5. c4 {[%emt 0:01:18]} Nc6 {[%emt 0:00:06]} 6. Nc2 {[%emt 0:03:43]} Nf6 {[%emt 0:00:43][%cal Bg8f6,Bf6d7,Bd7c5,Bc5e4][%mdl 32]} 7. Nc3 {[%emt 0:00:06]} d6 {[%emt 0:00:15]} 8. Be2 {[%emt 0:01:08]} O-O {[%emt 0:00:13]} 9. O-O {[%emt 0:01:14]} Nd7 {[%emt 0:00:12]} 10. Bd2 {[%emt 0:00:35]} Nc5 {[%emt 0:00:10]} 11. b4 {[%emt 0:00:28] 11.b4 scores better than 11.f3.} Bxc3 {[%emt 0:00:12] B37: Sicilian: Maroczy Bind with 5...Bg7, sidelines.} 12. Bxc3 {[%emt 0:00:06]} Nxe4 {[%emt 0:00:06]} 13. Bb2 {[%emt 0:00:20]} e5 {[%emt 0:00:17] 13...Be6 is vanishing.} 14. Qe1 {[%emt 0:14:25] has lost popularity (14.b5).} Be6 {[%emt 0:20:13]} 15. Rd1 {[%emt 0:07:57][%cal Oc4c5]} Qb6 {[%emt 0:27:02] Prevents c5.} 16. Kh1 {[%emt 0:11:56] [#]} a5 $146 {[%emt 0:07:39][%cal Ra5b4]} ({Predecessor:} 16... Rad8 17. f3 Nc5 18. Ba1 Na4 19. f4 f6 20. Bd3 a5 21. a3 axb4 22. axb4 Rd7 {0-1 (34) Krause,B (2456)-Van Kerkhof,D (2334) Karlsruhe 2018}) 17. b5 {[%emt 0:15:39]} Nb4 $36 {[%emt 0:04:42][%mdl 2048] Inhibits f3. White is under pressure.} 18. Ne3 {[%emt 0:02:09]} f5 {[%emt 0:02:20]} 19. c5 {[%emt 0:10:03] Inhibits f4.} (19. a3 $1 $11 Na6 20. f3 Qxe3 21. bxa6) 19... Qxc5 $17 {[%emt 0:08:55]} ({Much weaker is} 19... Nxc5 $6 20. Nc4 Qc7 21. Rxd6 $11) 20. Rc1 {[%emt 0:00:32]} Qb6 {[%emt 0:00:13]} 21. a3 {[%emt 0:01:15]} Nd5 {[%emt 0:12:06]} (21... Na2 $142 22. Rc2 Bb3) 22. Bc4 {[%emt 0:05:21]} Nc7 {[%emt 0:00:23]} 23. f3 {[%emt 0:02:36] Prevents a4.} Nf6 {[%emt 0:02:10]} 24. f4 {[%emt 0:00:28]} Rae8 {[%emt 0:03:02]} 25. fxe5 {[%emt 0:09:25]} dxe5 {[%emt 0:00:33] Hoping for ...f4.} 26. Bxe5 {[%emt 0:00:07]} ({White should try} 26. Bd3) 26... Bxc4 {[%emt 0:03:05]} ({And not} 26... Nxb5 27. Qh4 Bxc4 28. Nxc4 $15) 27. Nxc4 {[%emt 0:00:07]} Qxb5 {[%emt 0:01:15]} 28. Qc3 {[%emt 0:03:29] Inhibits a4.} Ncd5 {[%emt 0:02:40]} 29. Qd4 {[%emt 0:01:51]} Re6 {[%emt 0:02:47]} 30. h3 {[%emt 0:04:29]} Ne4 {[%emt 0:01:12]} 31. a4 {[%emt 0:01:24]} Qc5 {[%emt 0:00:25]} ({Don't do} 31... Qxa4 32. Qxd5 Qc6 33. Qxa5 $18) 32. Qb2 $2 {[%emt 0:00:38]} (32. Rfd1 $17 Qxd4 33. Rxd4) 32... Nb4 $19 {[%emt 0:00:38]} 33. Rf3 {[%emt 0:00:30] [#] Prevents Nd3.} (33. Qb3 {was the only chance.} b5 34. axb5) 33... Qe7 $2 {[%emt 0:00:34]} (33... Nd3 $1 {[%mdl 512]} 34. Bd4 Qxc4 35. Rxc4 Nxb2) 34. Bd4 {[%emt 0:00:52]} Rd8 {[%emt 0:00:24]} (34... Nc6 $19 {White must now prevent ...Nxd4.} 35. Bb6 f4) 35. Nxa5 $17 {[%emt 0:00:19]} b6 {[%emt 0:00:24]} 36. Nc4 {[%emt 0:00:26]} Rc6 {[%emt 0:00:41]} 37. Rb3 {[%emt 0:00:37] [#]} Nd5 {[%emt 0:00:31] Pair of Knights!} (37... Na2 $1 $17 {[%cal Ra2c1][%mdl 512]} 38. Rd1 (38. Rc2 Nac3) 38... Rxc4 39. Qxa2 Rdxd4 40. Rxd4 Rc1+ 41. Kh2 Qc7+ 42. Rg3+ Kg7 43. Rxe4 fxe4 44. Qb2+ Kg8 45. Qa2+ Kg7 46. Qb2+ Kg8 47. Qa2+ Kg7) 38. Nxb6 $11 {[%emt 0:00:16] The position is equal.} Rxc1+ {[%emt 0:00:26]} 39. Qxc1 {[%emt 0:00:03] Strongly threatening Nxd5.} Nxb6 {[%emt 0:00:35]} (39... Qe6 {is interesting.} 40. Bg1 Nf4 41. Qc7 Qd6) 40. Bxb6 {[%emt 0:00:06]} Qe6 $1 {[%emt 0:00:29]} 41. Bxd8 {[%emt 0:05:48]} Qxb3 {[%emt 0:00:06] KQB-KQN} 42. a5 {[%emt 0:02:00] aiming for Bb6.} Ng3+ {[%emt 0:23:56]} 43. Kh2 {[%emt 0:00:46]} Ne2 $1 {[%emt 0:00:05]} 44. Qc5 {[%emt 0:08:08]} (44. Qc7 $5 Qe3 $8 45. Qb6 Qg3+ 46. Kh1 Qe1+ 47. Kh2 Qg3+ 48. Kh1 Qe1+ 49. Kh2 Qg3+ $11) 44... Qg3+ {[%emt 0:06:50]} 45. Kh1 {[%emt 0:00:06] Threatens to win with Qc4+.} Qe1+ {[%emt 0:00:50]} 46. Kh2 {[%emt 0:00:05] Bc7 is the strong threat.} Qg3+ {[%emt 0:00:02] Whites escaped into a draw.   Weighted Error Value: White=0.27 (precise) /Black=0.25 (precise)} 1/2-1/2

[Event "16th Serbian Championship 2022"]
[Site "Bajina Basta"]
[Date "2022.12.12"]
[Round "7.1"]
[White "Bogosavljevic, Boban"]
[Black "Martic, Ivan"]
[Result "1-0"]
[ECO "E62"]
[WhiteElo "2521"]
[BlackElo "2270"]
[Annotator "TA"]
[PlyCount "73"]
[EventDate "2022.12.06"]
[EventType "tourn"]
[EventCountry "SRB"]
[SourceTitle "playchess.com"]
[Source "ChessBase"]
[SourceQuality "1"]
[TimeControl "40/5400+30:1800+30"]

{[%evp 13,73,25,31,16,23,0,48,-13,-11,-13,-16,-18,-18,-14,-26,-24,-28,-64,-60,-211,0,0,0,0,0,0,0,-18,14,29,47,20,250,252,241,245,382,367,422,413,412,395,406,396,587,587,692,692,692,692,672,618,12840,12840,12841,12841,12833,12833,12843,12844,29980,12831]} 1. Nf3 {[%emt 0:02:31]} Nf6 {[%emt 0:00:12]} 2. c4 {[%emt 0:00:07]} g6 {[%emt 0:00:27]} 3. g3 {[%emt 0:00:08]} Bg7 {[%emt 0:00:07]} 4. Bg2 {[%emt 0:00:03]} O-O {[%emt 0:00:08]} 5. O-O {[%emt 0:00:04]} d6 {[%emt 0:00:25]} 6. d4 {[%emt 0:00:07]} Nc6 {[%emt 0:00:17]} 7. Nc3 {[%emt 0:00:08]} Rb8 {[%emt 0:01:03]} 8. Bf4 {[%emt 0:03:24] Recently 8.b3 got a lot of attention. E62: King's Indian: Fianchetto: 6...c6 and Panno Variation (6...Nc6) without ...a6.} a6 {[%emt 0:00:49]} 9. c5 {[%emt 0:02:21]} b5 {[%emt 0:09:37]} (9... dxc5 $11 {might be stronger.} 10. dxc5 Nd7) 10. Rc1 {[%emt 0:05:06] [#]} (10. cxb6 $14 Rxb6 11. Rc1) 10... dxc5 $146 {[%emt 0:13:33]} ({Predecessor:} 10... b4 11. Na4 Na5 12. d5 Bd7 13. c6 Bc8 14. b3 e6 15. dxe6 fxe6 16. Bg5 h6 {0-1 (43) Kjartansson,G (2467)-Runic,Z (2348) Chess.com INT 2020}) 11. dxc5 {[%emt 0:06:43] Qxd8 is the strong threat.} b4 {[%emt 0:00:25]} 12. Qxd8 {[%emt 0:34:17]} Rxd8 {[%emt 0:00:44]} 13. Bxc7 {[%emt 0:01:23][%cal Of3e5] Black must now prevent Ne5!} bxc3 {[%emt 0:00:57]} 14. bxc3 {[%emt 0:00:25][%cal Of3e5] [#] Threatens to win with Ne5!} Bd7 $1 {[%emt 0:33:10][%cal Ob8c8]} 15. Nd4 {[%emt 0:27:41]} (15. Bxb8 Nxb8) 15... Rbc8 $1 {[%emt 0:04:04]} (15... Nxd4 16. cxd4 Bb5 17. Rb1 $16) 16. Nxc6 $2 {[%emt 0:01:18]} (16. Bxd8 $15 Nxd8 17. Rb1) 16... Bxc6 $2 {[%emt 0:00:24]} (16... Re8 $19 17. Nb4 Rxc7) 17. Bxd8 {[%emt 0:00:06]} Bxg2 {[%emt 0:00:14]} 18. Kxg2 {[%emt 0:00:47]} Rxd8 {[%emt 0:00:05]} 19. Rfd1 $36 {[%emt 0:03:04][%mdl 2048] White is pushing.} Rc8 {[%emt 0:00:51][%cal Of6e4]} 20. Rb1 {[%emt 0:01:33][%cal Oc5c6]} (20. Rd4 $5 {[%cal Rc1b1]}) 20... h5 {[%emt 0:01:32][%mdl 1024] Black has compensation.} (20... Rxc5 $2 21. Rd8+ Bf8 22. Rbb8 $18) (20... Ne4 {looks sharper.} 21. c6 Be5 22. Rb6 a5) 21. Rb7 {[%emt 0:01:30]} Ne4 {[%emt 0:12:11] Inhibits c6.} (21... Rxc5 22. Rd8+ Bf8 23. Rbb8 $16 (23. Rxe7 Rxc3 24. Ra7 Ra3 $11)) 22. Rdd7 {[%emt 0:02:25] With the idea Rdc7.} (22. c6 {with more complications.} Nd6 23. Rb6 a5 24. c4) 22... Rxc5 $2 {[%emt 0:02:03] White stays focused until the end.} (22... Bxc3 23. Rbc7 Re8 24. f3 $16 (24. Rxe7 Rxe7 25. Rxe7 Nxc5 $11)) (22... Be5 $11 {and Black is okay.} 23. Rxe7 Nxc5) 23. Rd8+ $18 {[%emt 0:01:53]} (23. Rxe7 $6 Nd6 $16) 23... Kh7 {[%emt 0:00:28] [#] Strongly threatening ...Bf6.} 24. Rxe7 {[%emt 0:00:10]} Nf6 {[%emt 0:09:06]} (24... Ng5 {is a better defense.}) 25. Rxf7 {[%emt 0:00:27]} g5 {[%emt 0:00:16]} 26. Rd6 {[%emt 0:00:36][%csl LRa6,LRf6]} Kg6 {[%emt 0:00:32]} 27. Ra7 {[%emt 0:00:31]} a5 {[%emt 0:01:27]} 28. Re6 {[%emt 0:02:18] Prevents a4.} Rxc3 {[%emt 0:05:58]} (28... Rc4 {keeps fighting.} 29. Rxa5 g4) 29. e4 {[%emt 0:00:16]} Rc2 {[%emt 0:02:19]} 30. e5 {[%emt 0:00:40]} ({Less strong is} 30. Rxa5 Kf7 31. Ree5 Ng4 32. Rf5+ (32. Rxg5 Rxf2+ 33. Kg1 Bd4 $15) 32... Kg8 $18) 30... Kf5 {[%emt 0:00:16]} 31. exf6 {[%emt 0:00:17]} ({Worse is} 31. Rxg7 Kxe6 32. exf6 Kxf6 $11) 31... Bxf6 {[%emt 0:00:17][%mdl 4096] Endgame KRR-KRB} 32. Re3 {[%emt 0:00:24] And now Rf3+ would win.} ({Stronger than} 32. Rxa5+ Kxe6 33. h4 g4 34. Rxh5 Rxa2 $17) 32... g4 {[%emt 0:00:30] Against Rf3+} 33. Rxa5+ {[%emt 0:00:10]} Kg6 {[%emt 0:02:33]} 34. Re6 {[%emt 0:00:40]} Kf7 {[%emt 0:00:00]} 35. Rb6 {[%emt 0:01:11]} h4 {[%emt 0:00:00]} 36. Rf5 {[%emt 0:00:38]} h3+ {[%emt 0:00:00]} 37. Kf1 {[%emt 0:00:03] Weighted Error Value: White=0.20 (precise) /Black=0.75} 1-0

[Event "16th Serbian Championship 2022"]
[Site "Bajina Basta"]
[Date "2022.12.12"]
[Round "7.2"]
[White "Perunovic, Miodrag"]
[Black "Perunovic, Milos"]
[Result "1/2-1/2"]
[ECO "B45"]
[WhiteElo "2417"]
[BlackElo "2541"]
[Annotator "TA"]
[PlyCount "55"]
[EventDate "2022.12.06"]
[EventType "tourn"]
[EventCountry "SRB"]
[SourceTitle "playchess.com"]
[Source "ChessBase"]
[SourceQuality "1"]
[TimeControl "40/5400+30:1800+30"]

{[%evp 11,55,6,8,0,0,0,0,0,0,0,0,0,0,0,0,0,0,0,0,0,0,-8,0,-23,-17,-16,0,-6,-7,-15,0,0,0,0,0,0,0,0,0,0,0,0,0,0,4,7]} 1. e4 {[%emt 0:07:42]} c5 {[%emt 0:00:15]} 2. Nf3 {[%emt 0:00:09]} e6 {[%emt 0:00:38]} 3. d4 {[%emt 0:00:09]} cxd4 {[%emt 0:00:09]} 4. Nxd4 {[%emt 0:00:11]} Nf6 {[%emt 0:00:30]} 5. Nc3 {[%emt 0:00:10]} Nc6 {[%emt 0:00:23]} 6. a3 {[%emt 0:01:50]} Be7 {[%emt 0:04:46]} 7. Nxc6 $1 {[%emt 0:00:53][%mdl 4] 7.Nxc6 is the recent fashion. B45: Sicilian Four Knights.} bxc6 {[%emt 0:00:08]} 8. e5 {[%emt 0:00:06]} Nd5 {[%emt 0:00:13]} 9. Qg4 {[%emt 0:00:09]} g6 {[%emt 0:00:46]} ({Don't do} 9... Nxc3 10. Qxg7 Rf8 11. bxc3 $16) 10. Qg3 {[%emt 0:04:56]} d6 {[%emt 0:05:54]} 11. Nxd5 {[%emt 0:09:06]} exd5 {[%emt 0:00:23]} 12. Bh6 {[%emt 0:00:09]} Be6 {[%emt 0:08:03] [#]} 13. exd6 $146 {[%emt 0:11:47]} ({Predecessor:} 13. Bd3 Bh4 14. Qf4 dxe5 15. Qxe5 Qf6 16. Bf4 Qxe5+ 17. Bxe5 Rg8 18. Ba6 Bc8 19. Bd3 Be6 20. Ba6 Bc8 21. Bd3 {½-½ (21) Santos Latasa,J (2627)-Ragger,M (2665) Struga 2021}) 13... Bxd6 {[%emt 0:07:21]} 14. Qc3 {[%emt 0:06:19][%csl LRc6,LRh8]} Kd7 {[%emt 0:01:38]} 15. Be2 {[%emt 0:07:43] Against Bg4} Re8 {[%emt 0:11:23] White must now prevent ...Bg4.} 16. Be3 {[%emt 0:04:51]} Qc7 {[%emt 0:09:03]} (16... Bf5 {looks sharper.} 17. Rd1 Qh4 18. Rd4 Re4) 17. O-O-O {[%emt 0:03:03]} Rab8 {[%emt 0:05:46] Threatens to win with ...c5.} 18. Bf3 {[%emt 0:12:12] The position is equal.} a5 {[%emt 0:05:14]} (18... Bxh2 $2 19. g3 $18) (18... Bf5 {is interesting.} 19. g3 Rb5 20. a4 Rb4) 19. Rhe1 {[%emt 0:07:13]} Rb5 {[%emt 0:05:32] [#] Strongly threatening ...Reb8.} (19... Bxh2 $2 20. g3 $18) 20. Be2 {[%emt 0:04:26]} Rbb8 {[%emt 0:03:32]} (20... Rb7 {feels hotter.} 21. Ba6 Rbb8 22. Bc5 Bxc5 23. Qxc5 Qb6) 21. Bf3 {[%emt 0:00:25]} Rb7 {[%emt 0:04:15] aiming for ...Reb8.} (21... Bxh2 $2 22. g3 $18) 22. Bc5 {[%emt 0:07:21]} Reb8 {[%emt 0:02:42] And now ...Rxb2 would win.} (22... Bxh2 $2 23. g3 $18) 23. Rxe6 {[%emt 0:07:15] Really sharp!} fxe6 {[%emt 0:03:57]} 24. Qg7+ {[%emt 0:00:10]} Kd8 {[%emt 0:01:32]} 25. Qg8+ {[%emt 0:00:56]} Kd7 {[%emt 0:00:16]} 26. Qxh7+ {[%emt 0:00:11]} Kd8 {[%emt 0:00:37]} 27. Qg8+ {[%emt 0:00:29]} (27. Qxg6 $2 {perishes.} Bxc5 28. Qg8+ Ke7 29. Qg5+ Kd7 30. Qg7+ Be7 $19) 27... Kd7 {[%emt 0:00:11]} 28. Qf7+ {[%emt 0:00:48] An even fight not without its subleties.   Weighted Error Value: White=0.02 (flawless) /Black=0.03 (flawless)} (28. Qxg6 $2 {loses.} Bxc5 29. Qf7+ Kd8 30. Qg8+ Ke7 31. Qg7+ Kd6 32. Qg3+ Kd7 33. Qxc7+ Kxc7 $19) 1/2-1/2